fUSD/lending_fUSD_20250720
["ID","MTS","AMOUNT","RATE_DAILY","PERIOD"]
[373370858,1752970253040,-493.46286696,0.00019178,2]
[373370859,1752970253050,-480.0,0.00019178,2]
[373370860,1752970253059,-1201.34,0.00019178,2]
[373370861,1752970253069,-480.0,0.00019178,2]
[373370862,1752970253078,-460.0,0.00019178,2]
[373370863,1752970253087,-460.0,0.00019178,2]
[373370864,1752970253097,-557.79322576,0.00019178,2]
[373370865,1752970253107,-480.0,0.00019178,2]
[373370866,1752970253117,-500.0,0.00019178,2]
[373370867,1752970253126,-480.0,0.00019178,2]
[373370868,1752970253136,-594.97,0.00019178,2]
[373370869,1752970253146,-500.0,0.00019178,2]
[373370870,1752970253155,-460.0,0.00019178,2]
[373370871,1752970253164,-2119.13,0.00019178,2]
[373370872,1752970253174,-480.0,0.00019178,2]
[373370873,1752970253183,-517.57,0.00019178,2]
[373370874,1752970253192,-1390.89,0.00019178,2]
[373370875,1752970253202,-4070.37,0.00019178,2]
[373370876,1752970253212,-997.14,0.00019178,2]
[373370877,1752970253222,-460.0,0.00019178,2]
[373370878,1752970253232,-570.13,0.00019178,2]
[373370879,1752970253241,-480.0,0.00019178,2]
[373370880,1752970253251,-460.0,0.00019178,2]
[373370881,1752970253261,-480.0,0.00019178,2]
[373370882,1752970253270,-810.15,0.00019178,2]
[373370883,1752970253279,-460.0,0.00019178,2]
[373370884,1752970253289,-480.0,0.00019178,2]
[373370885,1752970253298,-480.0,0.00019178,2]
[373370886,1752970253307,-1885.7,0.00019178,2]
[373370887,1752970253317,-895.78,0.00019178,2]
[373370888,1752970253326,-480.0,0.00019178,2]
[373370889,1752970253335,-460.0,0.00019178,2]
[373370890,1752970253344,-1439.41,0.00019178,2]
[373370891,1752970253354,-800.23,0.00019178,2]
[373370892,1752970253363,-500.0,0.00019178,2]
[373370893,1752970253372,-460.0,0.00019178,2]
[373370894,1752970253381,-480.0,0.00019178,2]
[373370895,1752970253390,-1092.99,0.00019178,2]
[373370896,1752970253399,-460.0,0.00019178,2]
[373370897,1752970253408,-480.0,0.00019178,2]
[373370898,1752970253418,-460.0,0.00019178,2]
[373370899,1752970253427,-441.71688992,0.00019178,2]
[373370900,1752970253436,-460.0,0.00019178,2]
[373370901,1752970253445,-480.0,0.00019178,2]
[373370902,1752970253455,-480.0,0.00019178,2]
[373370903,1752970253464,-460.0,0.00019178,2]
[373370904,1752970253473,-480.0,0.00019178,2]
[373370905,1752970253482,-1000.0,0.00019178,2]
[373370906,1752970253491,-460.0,0.00019178,2]
[373370907,1752970253501,-460.0,0.00019178,2]
[373370908,1752970253513,-3651.51,0.00019178,2]
[373370909,1752970253523,-460.0,0.00019178,2]
[373370910,1752970253532,-857.78,0.00019178,2]
[373370911,1752970253541,-460.0,0.00019178,2]
[373370912,1752970253551,-574.38,0.00019178,2]
[373370913,1752970253560,-460.0,0.00019178,2]
[373370914,1752970253636,-745.37,0.00019178,2]
[373370915,1752970253646,-881.37,0.00019178,2]
[373370916,1752970253656,-480.0,0.00019178,2]
[373370917,1752970253666,-460.0,0.00019178,2]
[373370918,1752970253676,-460.0,0.00019178,2]
[373370919,1752970253687,-390.0539727,0.00019178,2]
[373370920,1752970253696,-873.25,0.00019178,2]
[373370921,1752970253707,-557.37,0.00019178,2]
[373370922,1752970253716,-480.0,0.00019178,2]
[373370923,1752970253725,-480.0,0.00019178,2]
[373370924,1752970253734,-480.0,0.00019178,2]
[373370925,1752970253743,-460.0,0.00019178,2]
[373370926,1752970253752,-480.0,0.00019178,2]
[373370927,1752970253761,-19577.99,0.00019178,2]
[373370928,1752970253771,-496.51,0.00019178,2]
[373370929,1752970253780,-857.36,0.00019178,2]
[373370930,1752970253790,-460.0,0.00019178,2]
[373370931,1752970253799,-480.0,0.00019178,2]
[373370932,1752970253808,-489.19,0.00019178,2]
[373370933,1752970253817,-460.0,0.00019178,2]
[373370934,1752970253826,-480.0,0.00019178,2]
[373370935,1752970253836,-460.0,0.00019178,2]
[373370936,1752970253845,-151.0,0.00019178,2]
[373370937,1752970253855,-154.4,0.00019178,2]
[373370938,1752970253864,-26411.63182126,0.00019178,2]
[373370939,1752970253873,-150.0,0.0001918,2]
[373370940,1752970253882,-638.2011,0.00019187,2]
[373370941,1752970253892,-150.0,0.00019197,2]
[373370942,1752970253901,-168.0,0.00019225,2]
[373370943,1752970253910,-150.0,0.00019255,2]
[373370944,1752970253919,-952.0,0.00019255,2]
[373370945,1752970253929,-3351.0,0.00019255,2]
[373370946,1752970253938,-2016.0,0.00019255,2]
[373370947,1752970253947,-807.0,0.00019255,2]
[373370948,1752970253959,-1268.0,0.00019255,2]
[373370949,1752970253968,-1043.0,0.00019255,2]
[373370950,1752970253978,-1686.0,0.00019255,2]
[373370951,1752970253987,-595.0,0.00019255,2]
[373370952,1752970253996,-562.0,0.00019255,2]
[373370953,1752970254006,-1287.0,0.00019255,2]
[373370954,1752970254015,-21361.0,0.00019255,2]
[373370955,1752970254025,-4125.0,0.00019255,2]
[373370956,1752970254034,-862.0,0.00019255,2]
[373370957,1752970254043,-6048.0,0.00019255,2]
[373370958,1752970254052,-152.87155512,0.0001926,2]
[373370959,1752970254061,-1560.326,0.00019274,2]
[373370960,1752970254071,-165.008,0.00019274,2]
[373370961,1752970254080,-500.0,0.00019286,2]
[373370962,1752970254089,-397.70636925,0.00019286,2]
[373370963,1752970254099,-191.82183755,0.00019286,2]
[373370964,1752970254108,-173.04861703,0.00019286,2]
[373370965,1752970254118,-500.0,0.00019286,2]
[373370966,1752970254127,-500.0,0.00019286,2]
[373370967,1752970254137,-500.0,0.00019286,2]
[373370968,1752970254146,-500.0,0.00019286,2]
[373370969,1752970254155,-500.0,0.00019286,2]
[373370970,1752970254164,-500.0,0.00019286,2]
[373370971,1752970254173,-480.0,0.00019287,2]
[373370972,1752970254182,-480.0,0.00019287,2]
[373370973,1752970254191,-480.0,0.00019287,2]
[373370974,1752970254201,-167.16,0.00019287,2]
[373370975,1752970254212,-480.0,0.00019287,2]
[373370976,1752970254221,-480.0,0.00019287,2]
[373370977,1752970254231,-613.36,0.00019287,2]
[373370978,1752970254241,-480.0,0.00019287,2]
[373370979,1752970254250,-399.83,0.00019287,2]
[373370980,1752970254259,-480.0,0.00019287,2]
[373370981,1752970254269,-480.0,0.00019287,2]
[373370982,1752970254278,-218.19739052,0.00019287,2]
[373370983,1752970254287,-480.0,0.00019287,2]
[373370984,1752970254296,-480.0,0.00019287,2]
[373370985,1752970254306,-480.0,0.00019287,2]
[373370986,1752970254315,-480.0,0.00019287,2]
[373370987,1752970254325,-480.0,0.00019287,2]
[373370988,1752970254334,-480.0,0.00019287,2]
[373370989,1752970254343,-480.0,0.00019287,2]
[373370990,1752970254352,-480.0,0.00019287,2]
[373370991,1752970254362,-480.0,0.00019287,2]
[373370992,1752970254371,-835.74,0.00019287,2]
[373370993,1752970254380,-480.0,0.00019287,2]
[373370994,1752970254390,-480.0,0.00019287,2]
[373370995,1752970254400,-480.0,0.00019287,2]
[373370996,1752970254409,-480.0,0.00019287,2]
[373370997,1752970254418,-480.0,0.00019287,2]
[373370998,1752970254427,-480.0,0.00019287,2]
[373370999,1752970254436,-480.0,0.00019287,2]
[373371000,1752970254445,-626.07,0.00019287,2]
[373371001,1752970254457,-519.65,0.00019287,2]
[373371002,1752970254466,-440.0,0.00019287,2]
[373371003,1752970254475,-480.0,0.00019287,2]
[373371004,1752970254485,-480.0,0.00019287,2]
[373371005,1752970254494,-440.0,0.00019287,2]
[373371006,1752970254505,-480.0,0.00019287,2]
[373371007,1752970254518,-440.0,0.00019287,2]
[373371008,1752970254527,-480.0,0.00019287,2]
[373371009,1752970254537,-480.0,0.00019287,2]
[373371010,1752970254547,-373.72,0.00019287,2]
[373371011,1752970254557,-480.0,0.00019287,2]
[373371012,1752970254567,-480.0,0.00019287,2]
[373371013,1752970254577,-480.0,0.00019287,2]
[373371014,1752970254588,-480.0,0.00019287,2]
[373371015,1752970254598,-480.0,0.00019287,2]
[373371016,1752970254608,-480.0,0.00019287,2]
[373371017,1752970254617,-562.81,0.00019287,2]
[373371018,1752970254627,-480.0,0.00019287,2]
[373371019,1752970254636,-480.0,0.00019287,2]
[373371020,1752970254646,-420.0,0.00019287,2]
[373371021,1752970254655,-599.87,0.00019287,2]
[373371022,1752970254665,-272.37972789,0.00019287,2]
[373371023,1752970254675,-460.0,0.00019287,2]
[373371024,1752970254685,-480.0,0.00019287,2]
[373371025,1752970254694,-480.0,0.00019287,2]
[373371026,1752970254705,-480.0,0.00019287,2]
[373371027,1752970254715,-480.0,0.00019287,2]
[373371028,1752970254724,-693.21,0.00019287,2]
[373371029,1752970254734,-460.0,0.00019287,2]
[373371030,1752970254743,-639.35,0.00019287,2]
[373371031,1752970254753,-480.0,0.00019287,2]
[373371032,1752970254763,-480.0,0.00019287,2]
[373371033,1752970254772,-480.0,0.00019287,2]
[373371034,1752970254782,-480.0,0.00019287,2]
[373371035,1752970254791,-440.0,0.00019287,2]
[373371036,1752970254800,-480.0,0.00019287,2]
[373371037,1752970254810,-480.0,0.00019287,2]
[373371038,1752970254819,-440.0,0.00019287,2]
[373371039,1752970254829,-480.0,0.00019287,2]
[373371040,1752970254838,-480.0,0.00019287,2]
[373371041,1752970254848,-630.63,0.00019287,2]
[373371042,1752970254857,-480.0,0.00019287,2]
[373371043,1752970254867,-1045.9,0.00019287,2]
[373371044,1752970254876,-480.0,0.00019287,2]
[373371045,1752970254885,-480.0,0.00019287,2]
[373371046,1752970254895,-480.0,0.00019287,2]
[373371047,1752970254904,-480.0,0.00019287,2]
[373371048,1752970254914,-480.0,0.00019287,2]
[373371049,1752970254923,-480.0,0.00019287,2]
[373371050,1752970254933,-449.7,0.00019287,2]
[373371051,1752970254943,-480.0,0.00019287,2]
[373371052,1752970254952,-440.0,0.00019287,2]
[373371053,1752970254964,-517.02,0.00019287,2]
[373371054,1752970254974,-480.0,0.00019287,2]
[373371055,1752970254983,-632.98,0.00019287,2]
[373371056,1752970254993,-480.0,0.00019287,2]
[373371057,1752970255002,-480.0,0.00019287,2]
[373371058,1752970255012,-1000.0,0.00019287,2]
[373371059,1752970255021,-480.0,0.00019287,2]
[373371060,1752970255031,-546.64,0.00019287,2]
[373371061,1752970255041,-480.0,0.00019287,2]
[373371062,1752970255051,-480.0,0.00019287,2]
[373371063,1752970255060,-480.0,0.00019287,2]
[373371064,1752970255070,-480.0,0.00019287,2]
[373371065,1752970255080,-480.0,0.00019287,2]
[373371066,1752970255090,-480.0,0.00019287,2]
[373371067,1752970255099,-1132.18,0.00019287,2]
[373371068,1752970255109,-480.0,0.00019287,2]
[373371069,1752970255118,-480.0,0.00019287,2]
[373371070,1752970255127,-480.0,0.00019287,2]
[373371071,1752970255136,-818.66,0.00019287,2]
[373371072,1752970255145,-480.0,0.00019287,2]
[373371073,1752970255154,-480.0,0.00019287,2]
[373371074,1752970255164,-480.0,0.00019287,2]
[373371075,1752970255173,-480.0,0.00019287,2]
[373371076,1752970255182,-480.0,0.00019287,2]
[373371077,1752970255191,-480.0,0.00019287,2]
[373371078,1752970255201,-480.0,0.00019287,2]
[373371079,1752970255216,-480.0,0.00019287,2]
[373371080,1752970255225,-480.0,0.00019287,2]
[373371081,1752970255235,-493.07,0.00019287,2]
[373371082,1752970255244,-440.0,0.00019287,2]
[373371083,1752970255253,-440.0,0.00019287,2]
[373371084,1752970255263,-526.54,0.00019287,2]
[373371085,1752970255273,-712.86,0.00019287,2]
[373371086,1752970255282,-480.0,0.00019287,2]
[373371087,1752970255292,-480.0,0.00019287,2]
[373371088,1752970255301,-480.0,0.00019287,2]
[373371089,1752970255311,-480.0,0.00019287,2]
[373371090,1752970255320,-480.0,0.00019287,2]
[373371091,1752970255330,-450.50518571,0.00019287,2]
[373371092,1752970255340,-480.0,0.00019287,2]
[373371093,1752970255350,-480.0,0.00019287,2]
[373371094,1752970255360,-480.0,0.00019287,2]
[373371095,1752970255369,-480.0,0.00019287,2]
[373371096,1752970255379,-480.0,0.00019287,2]
[373371097,1752970255388,-480.0,0.00019287,2]
[373371098,1752970255397,-480.0,0.00019287,2]
[373371099,1752970255407,-171.21,0.00019287,2]
[373371100,1752970255416,-160.0,0.00019287,2]
[373371101,1752970255426,-480.0,0.00019287,2]
[373371102,1752970255435,-480.0,0.00019287,2]
[373371103,1752970255444,-480.0,0.00019287,2]
[373371104,1752970255453,-480.0,0.00019287,2]
[373371105,1752970255464,-480.0,0.00019287,2]
[373371106,1752970255474,-440.0,0.00019287,2]
[373371107,1752970255483,-480.0,0.00019287,2]
[373371108,1752970255493,-480.0,0.00019287,2]
[373371109,1752970255502,-480.0,0.00019287,2]
[373371110,1752970255516,-440.0,0.00019287,2]
[373371111,1752970255526,-440.0,0.00019287,2]
[373371112,1752970255536,-480.0,0.00019287,2]
[373371113,1752970255546,-460.0,0.00019287,2]
[373371114,1752970255555,-440.0,0.00019287,2]
[373371115,1752970255565,-440.0,0.00019287,2]
[373371116,1752970255575,-480.0,0.00019287,2]
[373371117,1752970255585,-480.0,0.00019287,2]
[373371118,1752970255594,-480.0,0.00019287,2]
[373371119,1752970255603,-644.04,0.00019287,2]
[373371120,1752970255612,-480.0,0.00019287,2]
[373371121,1752970255621,-586.82,0.00019287,2]
[373371122,1752970255631,-440.0,0.00019287,2]
[373371123,1752970255640,-440.0,0.00019287,2]
[373371124,1752970255649,-480.0,0.00019287,2]
[373371125,1752970255659,-385.57,0.00019287,2]
[373371126,1752970255669,-602.61,0.00019287,2]
[373371127,1752970255678,-440.0,0.00019287,2]
[373371128,1752970255688,-440.0,0.00019287,2]
[373371129,1752970255697,-480.0,0.00019287,2]
[373371130,1752970255707,-480.0,0.00019287,2]
[373371131,1752970255717,-440.0,0.00019287,2]
[373371132,1752970255727,-440.0,0.00019287,2]
[373371133,1752970255736,-480.0,0.00019287,2]
[373371134,1752970255746,-480.0,0.00019287,2]
[373371135,1752970255755,-480.0,0.00019287,2]
[373371136,1752970255764,-440.0,0.00019287,2]
[373371137,1752970255774,-440.0,0.00019287,2]
[373371138,1752970255783,-480.0,0.00019287,2]
[373371139,1752970255793,-480.0,0.00019287,2]
[373371140,1752970255803,-517.66,0.00019287,2]
[373371141,1752970255812,-440.0,0.00019287,2]
[373371142,1752970255821,-440.0,0.00019287,2]
[373371143,1752970255830,-190.16523039,0.00019287,2]
[373371144,1752970255840,-480.0,0.00019287,2]
[373371145,1752970255850,-440.0,0.00019287,2]
[373371146,1752970255859,-480.0,0.00019287,2]
[373371147,1752970255869,-480.0,0.00019287,2]
[373371148,1752970255878,-480.0,0.00019287,2]
[373371149,1752970255887,-440.0,0.00019287,2]
[373371150,1752970255897,-613.18282883,0.00019287,2]
[373371151,1752970255908,-637.66,0.00019287,2]
[373371152,1752970255918,-480.0,0.00019287,2]
[373371153,1752970255928,-480.0,0.00019287,2]
[373371154,1752970255939,-234.84956017,0.00019287,2]
[373371155,1752970255949,-480.0,0.00019287,2]
[373371156,1752970255960,-480.0,0.00019287,2]
[373371157,1752970255969,-480.0,0.00019287,2]
[373371158,1752970255979,-527.68,0.00019287,2]
[373371159,1752970255988,-300.0,0.00019287,2]
[373371160,1752970255999,-480.0,0.00019287,2]
[373371161,1752970256010,-480.0,0.00019287,2]
[373371162,1752970256020,-480.0,0.00019287,2]
[373371163,1752970256029,-847.27,0.00019287,2]
[373371164,1752970256039,-480.0,0.00019287,2]
[373371165,1752970256048,-325.7887578,0.00019287,2]
[373371166,1752970256059,-1201.32,0.00019287,2]
[373371167,1752970256068,-507.67,0.00019287,2]
[373371168,1752970256078,-480.0,0.00019287,2]
[373371169,1752970256089,-567.75,0.00019287,2]
[373371170,1752970256099,-237.11004529,0.00019287,2]
[373371171,1752970256109,-739.14,0.00019287,2]
[373371172,1752970256119,-480.0,0.00019287,2]
[373371173,1752970256128,-480.0,0.00019287,2]
[373371174,1752970256138,-480.0,0.00019287,2]
[373371175,1752970256147,-480.0,0.00019287,2]
[373371176,1752970256156,-480.0,0.00019287,2]
[373371177,1752970256166,-669.68,0.00019287,2]
[373371178,1752970256175,-480.0,0.00019287,2]
[373371179,1752970256184,-220.0,0.00019287,2]
[373371180,1752970256194,-2228.1,0.00019287,2]
[373371181,1752970256203,-593.44,0.00019287,2]
[373371182,1752970256214,-480.0,0.00019287,2]
[373371183,1752970256223,-2517.57,0.00019287,2]
[373371184,1752970256232,-1402.78,0.00019287,2]
[373371185,1752970256241,-480.0,0.00019287,2]
[373371186,1752970256251,-1560.99,0.00019287,2]
[373371187,1752970256260,-480.0,0.00019287,2]
[373371188,1752970256269,-480.0,0.00019287,2]
[373371189,1752970256278,-982.26,0.00019287,2]
[373371190,1752970256288,-1542.51,0.00019287,2]
[373371191,1752970256297,-480.0,0.00019287,2]
[373371192,1752970256306,-480.0,0.00019287,2]
[373371193,1752970256316,-480.0,0.00019287,2]
[373371194,1752970256325,-2153.19,0.00019287,2]
[373371195,1752970256335,-480.0,0.00019287,2]
[373371196,1752970256343,-1136.23,0.00019287,2]
[373371197,1752970256352,-846.29,0.00019287,2]
[373371198,1752970256361,-719.06,0.00019287,2]
[373371199,1752970256370,-2378.18,0.00019287,2]
[373371200,1752970256380,-480.0,0.00019287,2]
[373371201,1752970256390,-1030.1,0.00019287,2]
[373371202,1752970256399,-1544.48,0.00019287,2]
[373371203,1752970256408,-626.29,0.00019287,2]
[373371204,1752970256417,-3211.6,0.00019287,2]
[373371205,1752970256427,-460.0,0.00019287,2]
[373371206,1752970256437,-881.92,0.00019287,2]
[373371207,1752970256446,-771.5,0.00019287,2]
[373371208,1752970256456,-1138.06,0.00019287,2]
[373371209,1752970256466,-480.0,0.00019287,2]
[373371210,1752970256475,-508.14,0.00019287,2]
[373371211,1752970256484,-540.91,0.00019287,2]
[373371212,1752970256493,-770.5,0.00019287,2]
[373371213,1752970256503,-534.2,0.00019287,2]
[373371214,1752970256516,-398.0,0.00019287,2]
[373371215,1752970256526,-1861.2,0.00019287,2]
[373371216,1752970256535,-355.73,0.00019287,2]
[373371217,1752970256544,-1212.1,0.00019287,2]
[373371218,1752970256555,-631.13,0.00019287,2]
[373371219,1752970256564,-776.79,0.00019287,2]
[373371220,1752970256574,-480.0,0.00019287,2]
[373371221,1752970256586,-480.0,0.00019287,2]
[373371222,1752970256595,-1447.75,0.00019287,2]
[373371223,1752970256605,-707.34,0.00019287,2]
[373371224,1752970256614,-628.73,0.00019287,2]
[373371225,1752970256623,-480.0,0.00019287,2]
[373371226,1752970256633,-1045.87,0.00019287,2]
[373371227,1752970256642,-602.54,0.00019287,2]
[373371228,1752970256652,-480.0,0.00019287,2]
[373371229,1752970256662,-480.0,0.00019287,2]
[373371230,1752970256671,-480.0,0.00019287,2]
[373371231,1752970256681,-480.0,0.00019287,2]
[373371232,1752970256690,-4260.51,0.00019287,2]
[373371233,1752970256700,-677.69,0.00019287,2]
[373371234,1752970256711,-480.0,0.00019287,2]
[373371235,1752970256720,-507.8,0.00019287,2]
[373371236,1752970256730,-480.0,0.00019287,2]
[373371237,1752970256739,-737.47,0.00019287,2]
[373371238,1752970256749,-1994.78,0.00019287,2]
[373371239,1752970256758,-557.86,0.00019287,2]
[373371240,1752970256767,-328.090919,0.00019287,2]
[373371241,1752970256777,-794.86,0.00019287,2]
[373371242,1752970256786,-1060.74,0.00019287,2]
[373371243,1752970256796,-1139.98,0.00019287,2]
[373371244,1752970256806,-334.888669,0.00019287,2]
[373371245,1752970256815,-480.0,0.00019287,2]
[373371246,1752970256825,-1026.99,0.00019287,2]
[373371247,1752970256835,-480.0,0.00019287,2]
[373371248,1752970256845,-1202.03,0.00019287,2]
[373371249,1752970256854,-561.64,0.00019287,2]
[373371250,1752970256863,-826.17,0.00019287,2]
[373371251,1752970256873,-480.0,0.00019287,2]
[373371252,1752970256882,-1155.7,0.00019287,2]
[373371253,1752970256891,-480.0,0.00019287,2]
[373371254,1752970256900,-480.0,0.00019287,2]
[373371255,1752970256910,-753.91,0.00019287,2]
[373371256,1752970256919,-920.67,0.00019287,2]
[373371257,1752970256929,-480.0,0.00019287,2]
[373371258,1752970256938,-1934.92,0.00019287,2]
[373371259,1752970256948,-1864.68,0.00019287,2]
[373371260,1752970256958,-480.0,0.00019287,2]
[373371261,1752970256968,-784.29,0.00019287,2]
[373371262,1752970256977,-672.07,0.00019287,2]
[373371263,1752970256986,-252.04,0.00019287,2]
[373371264,1752970256996,-480.0,0.00019287,2]
[373371265,1752970257005,-794.3,0.00019287,2]
[373371266,1752970257015,-160.0,0.00019287,2]
[373371267,1752970257024,-3805.41,0.00019287,2]
[373371268,1752970257033,-2589.85,0.00019287,2]
[373371269,1752970257043,-652.73,0.00019287,2]
[373371270,1752970257053,-911.41,0.00019287,2]
[373371271,1752970257063,-4990.2,0.00019287,2]
[373371272,1752970257073,-480.0,0.00019287,2]
[373371273,1752970257082,-822.43,0.00019287,2]
[373371274,1752970257092,-480.0,0.00019287,2]
[373371275,1752970257103,-1626.59,0.00019287,2]
[373371276,1752970257112,-852.78,0.00019287,2]
[373371277,1752970257122,-480.0,0.00019287,2]
[373371278,1752970257131,-1629.51,0.00019287,2]
[373371279,1752970257143,-480.0,0.00019287,2]
[373371280,1752970257152,-480.0,0.00019287,2]
[373371281,1752970257163,-713.71,0.00019287,2]
[373371282,1752970257172,-1584.58,0.00019287,2]
[373371283,1752970257182,-788.98,0.00019287,2]
[373371284,1752970257191,-929.86,0.00019287,2]
[373371285,1752970257201,-329.133769,0.00019287,2]
[373371286,1752970257212,-165.47,0.00019287,2]
[373371287,1752970257222,-1556.72,0.00019287,2]
[373371288,1752970257232,-480.0,0.00019287,2]
[373371289,1752970257243,-4796.25,0.00019287,2]
[373371290,1752970257252,-557.86,0.00019287,2]
[373371291,1752970257262,-480.0,0.00019287,2]
[373371292,1752970257272,-480.0,0.00019287,2]
[373371293,1752970257282,-672.01,0.00019287,2]
[373371294,1752970257291,-2998.73,0.00019287,2]
[373371295,1752970257301,-480.0,0.00019287,2]
[373371296,1752970257311,-2572.89,0.00019287,2]
[373371297,1752970257321,-1400.08,0.00019287,2]
[373371298,1752970257331,-582.4,0.00019287,2]
[373371299,1752970257341,-480.0,0.00019287,2]
[373371300,1752970257350,-535.67,0.00019287,2]
[373371301,1752970257362,-480.0,0.00019287,2]
[373371302,1752970257372,-480.0,0.00019287,2]
[373371303,1752970257383,-480.0,0.00019287,2]
[373371304,1752970257392,-556.1,0.00019287,2]
[373371305,1752970257402,-620.42,0.00019287,2]
[373371306,1752970257412,-480.0,0.00019287,2]
[373371307,1752970257422,-480.0,0.00019287,2]
[373371308,1752970257431,-2903.43,0.00019287,2]
[373371309,1752970257442,-802.25,0.00019287,2]
[373371310,1752970257452,-601.32,0.00019287,2]
[373371311,1752970257463,-480.0,0.00019287,2]
[373371312,1752970257473,-480.0,0.00019287,2]
[373371313,1752970257483,-483.94,0.00019287,2]
[373371314,1752970257494,-702.17,0.00019287,2]
[373371315,1752970257505,-480.0,0.00019287,2]
[373371316,1752970257520,-843.4,0.00019287,2]
[373371317,1752970257530,-480.0,0.00019287,2]
[373371318,1752970257541,-480.0,0.00019287,2]
[373371319,1752970257551,-3587.94,0.00019287,2]
[373371320,1752970257561,-480.0,0.00019287,2]
[373371321,1752970257571,-480.0,0.00019287,2]
[373371322,1752970257581,-2721.42,0.00019287,2]
[373371323,1752970257592,-913.23,0.00019287,2]
[373371324,1752970257603,-869.16,0.00019287,2]
[373371325,1752970257614,-480.0,0.00019287,2]
[373371326,1752970257624,-480.0,0.00019287,2]
[373371327,1752970257636,-996.39,0.00019287,2]
[373371328,1752970257646,-856.18,0.00019287,2]
[373371329,1752970257657,-480.0,0.00019287,2]
[373371330,1752970257667,-913.59,0.00019287,2]
[373371331,1752970257677,-484.76,0.00019287,2]
[373371332,1752970257688,-480.0,0.00019287,2]
[373371333,1752970257699,-1037.32,0.00019287,2]
[373371334,1752970257709,-777.46,0.00019287,2]
[373371335,1752970257718,-486.67,0.00019287,2]
[373371336,1752970257730,-676.62,0.00019287,2]
[373371337,1752970257740,-480.0,0.00019287,2]
[373371338,1752970257751,-7250.19,0.00019287,2]
[373371339,1752970257760,-480.0,0.00019287,2]
[373371340,1752970257770,-819.37,0.00019287,2]
[373371341,1752970257780,-480.0,0.00019287,2]
[373371342,1752970257790,-480.0,0.00019287,2]
[373371343,1752970257799,-1201.34,0.00019287,2]
[373371344,1752970257809,-480.0,0.00019287,2]
[373371345,1752970257819,-480.0,0.00019287,2]
[373371346,1752970257828,-480.0,0.00019287,2]
[373371347,1752970257838,-480.0,0.00019287,2]
[373371348,1752970257848,-594.97,0.00019287,2]
[373371349,1752970257857,-2119.13,0.00019287,2]
[373371350,1752970257867,-480.0,0.00019287,2]
[373371351,1752970257876,-517.57,0.00019287,2]
[373371352,1752970257888,-1390.89,0.00019287,2]
[373371353,1752970257898,-4070.37,0.00019287,2]
[373371354,1752970257908,-997.14,0.00019287,2]
[373371355,1752970257919,-570.13,0.00019287,2]
[373371356,1752970257930,-480.0,0.00019287,2]
[373371357,1752970257940,-480.0,0.00019287,2]